[Event "Late-Titled-Tuesday-Blitz-April-23-2024"]
[Site "Chess.com"]
[Date "2024.04.23"]
[Round "5"]
[White "Airquake"]
[Black "masterofpuppets2"]
[Result "1-0"]
[WhiteElo "2657"]
[BlackElo "2480"]
[TimeControl "180+1"]
[EndTime "14:56:50 PDT"]
[Termination "Airquake won on time"]

1. g3 {[%clk 0:02:48]} 1... d5 {[%clk 0:02:59]} 2. Bg2 {[%clk 0:02:48.9]} 2...
c5 {[%clk 0:02:59]} 3. Nf3 {[%clk 0:02:48.8]} 3... Nc6 {[%clk 0:02:58.8]} 4. O-O
{[%clk 0:02:48.9]} 4... e5 {[%clk 0:02:58.8]} 5. d3 {[%clk 0:02:48.1]} 5... Be7
{[%clk 0:02:59.3]} 6. c3 {[%clk 0:02:45.9]} 6... h5 {[%clk 0:02:58.7]} 7. e4
{[%clk 0:02:44.3]} 7... d4 {[%clk 0:02:58.5]} 8. cxd4 {[%clk 0:02:40.4]} 8...
cxd4 {[%clk 0:02:59.4]} 9. h4 {[%clk 0:02:40.5]} 9... Nh6 {[%clk 0:02:57.7]} 10.
Nbd2 {[%clk 0:02:40.2]} 10... Be6 {[%clk 0:02:55.6]} 11. Nc4 {[%clk 0:02:37.9]}
11... Qc7 {[%clk 0:02:51.2]} 12. Ng5 {[%clk 0:02:37.2]} 12... Bxc4 {[%clk
0:02:50.9]} 13. dxc4 {[%clk 0:02:36.7]} 13... Ng4 {[%clk 0:02:49.9]} 14. a3
{[%clk 0:02:34.6]} 14... a5 {[%clk 0:02:42.1]} 15. Bd2 {[%clk 0:02:35]} 15... a4
{[%clk 0:02:41.6]} 16. b4 {[%clk 0:02:34.6]} 16... axb3 {[%clk 0:02:41.5]} 17.
Qxb3 {[%clk 0:02:35.2]} 17... O-O {[%clk 0:02:40.2]} 18. Rfb1 {[%clk 0:02:26.9]}
18... Rfb8 {[%clk 0:02:37.8]} 19. Bf3 {[%clk 0:02:06.5]} 19... Na5 {[%clk
0:02:32.9]} 20. Qb5 {[%clk 0:01:58.5]} 20... Nf6 {[%clk 0:01:58.8]} 21. Be2
{[%clk 0:01:41.9]} 21... Nc6 {[%clk 0:01:58.1]} 22. c5 {[%clk 0:01:38.5]} 22...
Ng4 {[%clk 0:01:48.4]} 23. Bc4 {[%clk 0:01:32.7]} 23... Nd8 {[%clk 0:01:46]} 24.
Qe8+ {[%clk 0:01:29.6]} 24... Bf8 {[%clk 0:01:45]} 25. Rb6 {[%clk 0:01:08.1]}
25... Nh6 {[%clk 0:01:38.8]} 26. Rg6 {[%clk 0:00:53.5]} 26... Qe7 {[%clk
0:01:12.8]} 27. Qb5 {[%clk 0:00:40.1]} 27... Kh8 {[%clk 0:01:02.5]} 28. Rd6
{[%clk 0:00:37.4]} 28... Nc6 {[%clk 0:00:56.6]} 29. Rxh6+ {[%clk 0:00:28.8]}
29... gxh6 {[%clk 0:00:56.5]} 30. Nxf7+ {[%clk 0:00:29.7]} 30... Kh7 {[%clk
0:00:56.7]} 31. Nd6 {[%clk 0:00:30.6]} 31... Qd7 {[%clk 0:00:44.3]} 32. Be2
{[%clk 0:00:23.3]} 32... Bxd6 {[%clk 0:00:42.7]} 33. cxd6 {[%clk 0:00:23.5]}
33... Qxd6 {[%clk 0:00:43.4]} 34. Bxh5 {[%clk 0:00:22.4]} 34... Rf8 {[%clk
0:00:35.7]} 35. Qxb7+ {[%clk 0:00:20]} 35... Kh8 {[%clk 0:00:32.3]} 36. Rc1
{[%clk 0:00:13]} 36... Na5 {[%clk 0:00:22.6]} 37. Bxa5 {[%clk 0:00:10.1]} 37...
Rxa5 {[%clk 0:00:22.2]} 38. Rc7 {[%clk 0:00:10.4]} 38... Qxc7 {[%clk 0:00:06.5]}
39. Qxc7 {[%clk 0:00:10.4]} 39... Ra6 {[%clk 0:00:02.2]} 40. Qe7 {[%clk
0:00:09.3]} 40... Raf6 {[%clk 0:00:02.4]} 41. Qxe5 {[%clk 0:00:09.1]} 41... d3
{[%clk 0:00:02.7]} 42. f4 {[%clk 0:00:09.5]} 1-0

[Event "Late-Titled-Tuesday-Blitz-April-23-2024"]
[Site "Chess.com"]
[Date "2024.04.23"]
[Round "5"]
[White "DanielNaroditsky"]
[Black "Hikaru"]
[Result "0-1"]
[WhiteElo "2967"]
[BlackElo "3316"]
[TimeControl "180+1"]
[EndTime "14:56:54 PDT"]
[Termination "Hikaru won by resignation"]

1. e4 {[%clk 0:03:00.4]} 1... c5 {[%clk 0:02:59]} 2. c3 {[%clk 0:02:56.8]} 2...
g6 {[%clk 0:02:54.4]} 3. Nf3 {[%clk 0:02:53.8]} 3... d5 {[%clk 0:02:54.1]} 4.
exd5 {[%clk 0:02:54.3]} 4... Qxd5 {[%clk 0:02:55]} 5. d4 {[%clk 0:02:54.5]} 5...
Bg7 {[%clk 0:02:53.8]} 6. Na3 {[%clk 0:02:53.5]} 6... Nf6 {[%clk 0:02:42]} 7.
Bc4 {[%clk 0:02:49.8]} 7... Qe4+ {[%clk 0:02:39.5]} 8. Be3 {[%clk 0:02:50.1]}
8... cxd4 {[%clk 0:02:40]} 9. Bxf7+ {[%clk 0:02:46.2]} 9... Kf8 {[%clk 0:02:32]}
10. O-O {[%clk 0:02:09.9]} 10... Bg4 {[%clk 0:02:10.4]} 11. Bxd4 {[%clk
0:01:48.3]} 11... Nc6 {[%clk 0:01:41]} 12. Re1 {[%clk 0:01:33.4]} 12... Bxf3
{[%clk 0:01:36.1]} 13. gxf3 {[%clk 0:01:27.2]} 13... Qh4 {[%clk 0:01:31.3]} 14.
Qb3 {[%clk 0:00:55.5]} 14... Nxd4 {[%clk 0:00:45.8]} 15. cxd4 {[%clk 0:00:54.3]}
15... Nh5 {[%clk 0:00:46.5]} 16. Qxb7 {[%clk 0:00:21]} 16... Nf4 {[%clk
0:00:44.9]} 17. Be6 {[%clk 0:00:18.9]} 17... Bxd4 {[%clk 0:00:36.8]} 18. Kh1
{[%clk 0:00:13.3]} 18... Kg7 {[%clk 0:00:33.9]} 19. Bg4 {[%clk 0:00:12.7]} 19...
Bf6 {[%clk 0:00:34.3]} 20. Qe4 {[%clk 0:00:09.9]} 20... g5 {[%clk 0:00:21.8]}
21. Nc4 {[%clk 0:00:05.8]} 21... Rhd8 {[%clk 0:00:17.3]} 22. Ne3 {[%clk
0:00:06.2]} 22... Kh8 {[%clk 0:00:16.9]} 23. Rf1 {[%clk 0:00:06.7]} 23... Qh6
{[%clk 0:00:16.3]} 24. Nf5 {[%clk 0:00:07]} 24... Qg6 {[%clk 0:00:17]} 25. Rae1
{[%clk 0:00:07.5]} 25... h5 {[%clk 0:00:17.2]} 26. Qc6 {[%clk 0:00:02.3]} 26...
hxg4 {[%clk 0:00:16.6]} 27. fxg4 {[%clk 0:00:03.2]} 27... Rac8 {[%clk
0:00:16.2]} 28. Qa6 {[%clk 0:00:02.5]} 28... Qh7 {[%clk 0:00:14.5]} 29. Re3
{[%clk 0:00:01.9]} 29... e6 {[%clk 0:00:14.1]} 30. Ng3 {[%clk 0:00:02.1]} 30...
Rc2 {[%clk 0:00:12.9]} 31. Nh5 {[%clk 0:00:02.3]} 31... Nxh5 {[%clk 0:00:09.5]}
32. Rh3 {[%clk 0:00:02.7]} 32... Qe4+ {[%clk 0:00:08.6]} 33. f3 {[%clk
0:00:02.5]} 33... Qd3 {[%clk 0:00:08.3]} 34. Qxd3 {[%clk 0:00:02.7]} 34... Rxd3
{[%clk 0:00:08]} 35. Rxh5+ {[%clk 0:00:02.7]} 35... Kg7 {[%clk 0:00:08.7]} 36.
f4 {[%clk 0:00:02.8]} 36... Rdd2 {[%clk 0:00:08]} 37. fxg5 {[%clk 0:00:01.9]}
37... Be5 {[%clk 0:00:08.6]} 38. Re1 {[%clk 0:00:02.6]} 38... Bf4 {[%clk
0:00:07.7]} 39. g6 {[%clk 0:00:02.8]} 39... e5 {[%clk 0:00:08]} 40. Kg1 {[%clk
0:00:02.2]} 40... Bxh2+ {[%clk 0:00:08.1]} 41. Kh1 {[%clk 0:00:02]} 41... Bf4
{[%clk 0:00:09]} 42. Rh7+ {[%clk 0:00:01.7]} 42... Kxg6 {[%clk 0:00:09.4]} 43.
Rh3 {[%clk 0:00:02.5]} 43... Rh2+ {[%clk 0:00:09.5]} 44. Rxh2 {[%clk 0:00:03]}
44... Rxh2+ {[%clk 0:00:10.2]} 45. Kg1 {[%clk 0:00:03.6]} 45... Rxb2 {[%clk
0:00:11.1]} 46. Re4 {[%clk 0:00:03.9]} 46... Kg5 {[%clk 0:00:11.5]} 47. Ra4
{[%clk 0:00:04.2]} 47... Kxg4 {[%clk 0:00:11.4]} 48. a3 {[%clk 0:00:04.6]} 48...
Kf3 {[%clk 0:00:11.7]} 49. Rb4 {[%clk 0:00:03.8]} 49... Rxb4 {[%clk 0:00:11.6]}
50. axb4 {[%clk 0:00:04.7]} 50... e4 {[%clk 0:00:11.9]} 0-1

[Event "Late-Titled-Tuesday-Blitz-April-23-2024"]
[Site "Chess.com"]
[Date "2024.04.23"]
[Round "5"]
[White "TangerineandLemon25"]
[Black "sergiochess83"]
[Result "1-0"]
[WhiteElo "2649"]
[BlackElo "2927"]
[TimeControl "180+1"]
[EndTime "14:56:55 PDT"]
[Termination "TangerineandLemon25 won by resignation"]

1. e4 {[%clk 0:03:00.9]} 1... e6 {[%clk 0:02:56.7]} 2. d4 {[%clk 0:03:00.1]}
2... d5 {[%clk 0:02:56.9]} 3. exd5 {[%clk 0:02:52.7]} 3... exd5 {[%clk
0:02:55.1]} 4. Nf3 {[%clk 0:02:53]} 4... Bd6 {[%clk 0:02:53.2]} 5. c4 {[%clk
0:02:49]} 5... Nf6 {[%clk 0:02:53.2]} 6. Nc3 {[%clk 0:02:35.5]} 6... O-O {[%clk
0:02:51.8]} 7. c5 {[%clk 0:02:28.3]} 7... Re8+ {[%clk 0:02:51.2]} 8. Be2 {[%clk
0:02:25.8]} 8... Bf8 {[%clk 0:02:51.3]} 9. O-O {[%clk 0:02:26.5]} 9... Bf5
{[%clk 0:02:48]} 10. Bf4 {[%clk 0:02:18.6]} 10... c6 {[%clk 0:02:43.6]} 11. Bd3
{[%clk 0:02:12.6]} 11... Bg6 {[%clk 0:02:36.4]} 12. Bxg6 {[%clk 0:01:57]} 12...
hxg6 {[%clk 0:02:36]} 13. b4 {[%clk 0:01:57.7]} 13... Ne4 {[%clk 0:02:31.7]} 14.
Qc2 {[%clk 0:01:33.2]} 14... Nd7 {[%clk 0:02:30]} 15. Rfe1 {[%clk 0:01:31.8]}
15... f5 {[%clk 0:02:21.2]} 16. Qb3 {[%clk 0:01:10.8]} 16... Ndf6 {[%clk
0:01:30.9]} 17. Ne5 {[%clk 0:00:57.5]} 17... g5 {[%clk 0:01:28.8]} 18. Nxe4
{[%clk 0:00:54.9]} 18... Nxe4 {[%clk 0:01:26]} 19. f3 {[%clk 0:00:54.5]} 19...
Nd6 {[%clk 0:00:47.9]} 20. cxd6 {[%clk 0:00:36.9]} 20... gxf4 {[%clk 0:00:47.6]}
21. d7 {[%clk 0:00:36.7]} 21... Re6 {[%clk 0:00:43.2]} 22. b5 {[%clk 0:00:30.5]}
22... Qb6 {[%clk 0:00:28.3]} 23. bxc6 {[%clk 0:00:18.5]} 23... bxc6 {[%clk
0:00:22.3]} 24. Qxb6 {[%clk 0:00:18.2]} 24... axb6 {[%clk 0:00:22.3]} 25. Nxc6
{[%clk 0:00:19.1]} 25... Rxc6 {[%clk 0:00:07.1]} 26. Re8 {[%clk 0:00:20]} 26...
Rd6 {[%clk 0:00:05.9]} 27. Rxa8 {[%clk 0:00:18]} 27... Rxd7 {[%clk 0:00:06.6]}
28. Rb1 {[%clk 0:00:18.3]} 28... Rd6 {[%clk 0:00:05.4]} 29. Rb8 {[%clk
0:00:18.6]} 29... Re6 {[%clk 0:00:05.1]} 30. R1xb6 {[%clk 0:00:16.8]} 30... Re2
{[%clk 0:00:05.2]} 31. R6b7 {[%clk 0:00:13.9]} 31... Rxa2 {[%clk 0:00:04.3]} 32.
Re7 {[%clk 0:00:09.7]} 32... Ra1+ {[%clk 0:00:04.5]} 33. Kf2 {[%clk 0:00:10.1]}
33... Ra2+ {[%clk 0:00:05.2]} 34. Re2 {[%clk 0:00:07.4]} 34... Ra6 {[%clk
0:00:04.8]} 35. Ree8 {[%clk 0:00:06.7]} 35... Rf6 {[%clk 0:00:05.5]} 36. Rbd8
{[%clk 0:00:05.5]} 36... g6 {[%clk 0:00:05.1]} 37. Rxd5 {[%clk 0:00:05.5]} 37...
Kf7 {[%clk 0:00:05.6]} 38. Ra8 {[%clk 0:00:06.1]} 38... Be7 {[%clk 0:00:05.4]}
39. Ra7 {[%clk 0:00:06.4]} 39... Rb6 {[%clk 0:00:04.5]} 40. Rdd7 {[%clk
0:00:06.2]} 40... Rb2+ {[%clk 0:00:04.6]} 41. Ke1 {[%clk 0:00:05.9]} 41... Rb1+
{[%clk 0:00:05.1]} 42. Kd2 {[%clk 0:00:06.5]} 42... Rb2+ {[%clk 0:00:05.7]} 43.
Kd3 {[%clk 0:00:07.2]} 43... Rb3+ {[%clk 0:00:05.6]} 44. Kc4 {[%clk 0:00:07.7]}
44... Re3 {[%clk 0:00:06.5]} 45. Rxe7+ {[%clk 0:00:07.3]} 45... Rxe7 {[%clk
0:00:06.1]} 46. Rxe7+ {[%clk 0:00:08.2]} 46... Kxe7 {[%clk 0:00:06.9]} 47. Kd5
{[%clk 0:00:09.1]} 1-0

[Event "Late-Titled-Tuesday-Blitz-April-23-2024"]
[Site "Chess.com"]
[Date "2024.04.23"]
[Round "5"]
[White "albi1999"]
[Black "DominguezOnYoutube"]
[Result "0-1"]
[WhiteElo "2664"]
[BlackElo "2959"]
[TimeControl "180+1"]
[EndTime "14:56:58 PDT"]
[Termination "DominguezOnYoutube won on time"]

1. d4 {[%clk 0:03:00.9]} 1... Nf6 {[%clk 0:02:59.3]} 2. c4 {[%clk 0:03:01.1]}
2... e6 {[%clk 0:02:59]} 3. Nf3 {[%clk 0:03:01.6]} 3... d5 {[%clk 0:02:58.5]} 4.
g3 {[%clk 0:03:01.8]} 4... Bb4+ {[%clk 0:02:56.9]} 5. Bd2 {[%clk 0:03:01.5]}
5... Be7 {[%clk 0:02:56.1]} 6. Bg2 {[%clk 0:03:01.5]} 6... O-O {[%clk 0:02:55]}
7. O-O {[%clk 0:03:01.2]} 7... c6 {[%clk 0:02:53.2]} 8. Qc2 {[%clk 0:03:01.7]}
8... Nbd7 {[%clk 0:02:51.8]} 9. Rd1 {[%clk 0:03:01.5]} 9... a5 {[%clk
0:02:48.1]} 10. Bf4 {[%clk 0:02:52.6]} 10... b6 {[%clk 0:02:46.2]} 11. Ne5
{[%clk 0:02:40]} 11... Nxe5 {[%clk 0:02:42]} 12. dxe5 {[%clk 0:02:38.1]} 12...
Nd7 {[%clk 0:02:41.5]} 13. cxd5 {[%clk 0:02:37.1]} 13... cxd5 {[%clk 0:02:41]}
14. e4 {[%clk 0:02:24.5]} 14... d4 {[%clk 0:02:40.2]} 15. Rxd4 {[%clk
0:02:23.9]} 15... g5 {[%clk 0:02:14.7]} 16. Bc1 {[%clk 0:01:55]} 16... Qe8
{[%clk 0:02:12.9]} 17. Qc6 {[%clk 0:01:42.5]} 17... Rb8 {[%clk 0:01:46.9]} 18.
Nc3 {[%clk 0:01:37]} 18... Nxe5 {[%clk 0:01:35]} 19. Qxe8 {[%clk 0:01:01.5]}
19... Rxe8 {[%clk 0:01:34.3]} 20. Rd1 {[%clk 0:00:59.3]} 20... Ba6 {[%clk
0:01:29.9]} 21. Bf1 {[%clk 0:00:52.2]} 21... Bxf1 {[%clk 0:01:05.4]} 22. Kxf1
{[%clk 0:00:53.1]} 22... Rec8 {[%clk 0:01:02]} 23. f4 {[%clk 0:00:49.1]} 23...
gxf4 {[%clk 0:01:00.3]} 24. Bxf4 {[%clk 0:00:47.1]} 24... Bf6 {[%clk 0:01:00.6]}
25. Rac1 {[%clk 0:00:36]} 25... b5 {[%clk 0:00:56.3]} 26. Ne2 {[%clk 0:00:30.8]}
26... Rxc1 {[%clk 0:00:54.2]} 27. Rxc1 {[%clk 0:00:31.7]} 27... Rd8 {[%clk
0:00:54.1]} 28. Bxe5 {[%clk 0:00:28.5]} 28... Bxe5 {[%clk 0:00:53.9]} 29. Rc2
{[%clk 0:00:29.1]} 29... a4 {[%clk 0:00:49.9]} 30. Nc3 {[%clk 0:00:25.5]} 30...
Rc8 {[%clk 0:00:44.8]} 31. a3 {[%clk 0:00:20.9]} 31... b4 {[%clk 0:00:44.9]} 32.
axb4 {[%clk 0:00:20.6]} 32... a3 {[%clk 0:00:45.3]} 33. bxa3 {[%clk 0:00:14.6]}
33... Rxc3 {[%clk 0:00:44.6]} 34. Rxc3 {[%clk 0:00:14.4]} 34... Bxc3 {[%clk
0:00:45.3]} 35. Ke2 {[%clk 0:00:14.4]} 35... Kf8 {[%clk 0:00:40.5]} 36. Kd3
{[%clk 0:00:14.6]} 36... Bb2 {[%clk 0:00:39.3]} 37. a4 {[%clk 0:00:14.8]} 37...
Ke7 {[%clk 0:00:39.6]} 38. Kc4 {[%clk 0:00:14.3]} 38... Kd6 {[%clk 0:00:37]} 39.
a5 {[%clk 0:00:14.6]} 39... Bc1 {[%clk 0:00:32.8]} 40. b5 {[%clk 0:00:14.3]}
40... Bd2 {[%clk 0:00:31.4]} 41. a6 {[%clk 0:00:12.5]} 41... Be3 {[%clk
0:00:31.4]} 42. g4 {[%clk 0:00:10.5]} 42... Ke5 {[%clk 0:00:26.3]} 43. Kb4
{[%clk 0:00:09.4]} 43... Bb6 {[%clk 0:00:25.9]} 44. Kc4 {[%clk 0:00:04.7]} 44...
Kxe4 {[%clk 0:00:25.5]} 45. g5 {[%clk 0:00:05.3]} 45... e5 {[%clk 0:00:24.9]}
46. h4 {[%clk 0:00:05.4]} 46... Ba7 {[%clk 0:00:19]} 47. h5 {[%clk 0:00:04.1]}
47... Bb6 {[%clk 0:00:16.7]} 48. Kb4 {[%clk 0:00:02.1]} 48... Kd4 {[%clk
0:00:15.6]} 0-1

[Event "Late-Titled-Tuesday-Blitz-April-23-2024"]
[Site "Chess.com"]
[Date "2024.04.23"]
[Round "5"]
[White "RealPerangel"]
[Black "Njal28"]
[Result "0-1"]
[WhiteElo "2704"]
[BlackElo "3023"]
[TimeControl "180+1"]
[EndTime "14:57:08 PDT"]
[Termination "Njal28 won by resignation"]

1. e4 {[%clk 0:03:00.9]} 1... c6 {[%clk 0:02:58.4]} 2. Nc3 {[%clk 0:02:59.7]}
2... d5 {[%clk 0:02:57.3]} 3. Nf3 {[%clk 0:03:00.1]} 3... Bg4 {[%clk 0:02:48.7]}
4. Be2 {[%clk 0:02:59.4]} 4... e6 {[%clk 0:02:48.1]} 5. O-O {[%clk 0:02:58.2]}
5... Nf6 {[%clk 0:02:48.1]} 6. e5 {[%clk 0:02:56.7]} 6... Nfd7 {[%clk
0:02:48.1]} 7. d4 {[%clk 0:02:57.4]} 7... c5 {[%clk 0:02:35.2]} 8. Bg5 {[%clk
0:02:54.9]} 8... Qb6 {[%clk 0:02:30.1]} 9. dxc5 {[%clk 0:02:50.9]} 9... Nxc5
{[%clk 0:02:24.4]} 10. Nd4 {[%clk 0:02:48.5]} 10... Bxe2 {[%clk 0:02:24.1]} 11.
Qxe2 {[%clk 0:02:47.1]} 11... Nc6 {[%clk 0:02:24.6]} 12. Be3 {[%clk 0:02:42.6]}
12... Nxd4 {[%clk 0:02:17.9]} 13. Bxd4 {[%clk 0:02:40.4]} 13... Qc6 {[%clk
0:02:18.8]} 14. Qg4 {[%clk 0:02:30.1]} 14... h5 {[%clk 0:02:16.4]} 15. Qg5
{[%clk 0:02:26]} 15... h4 {[%clk 0:02:16.7]} 16. h3 {[%clk 0:02:22.7]} 16... g6
{[%clk 0:01:39.7]} 17. Rad1 {[%clk 0:02:12.4]} 17... Be7 {[%clk 0:01:39.7]} 18.
Qe3 {[%clk 0:01:59.4]} 18... Rh5 {[%clk 0:01:36.9]} 19. Rfe1 {[%clk 0:01:45]}
19... Rc8 {[%clk 0:01:32.3]} 20. a3 {[%clk 0:01:40.1]} 20... a6 {[%clk
0:01:32.1]} 21. Qd2 {[%clk 0:01:35.1]} 21... b5 {[%clk 0:01:30.2]} 22. f3 {[%clk
0:01:29.4]} 22... Nd7 {[%clk 0:01:26]} 23. Qe3 {[%clk 0:01:19.5]} 23... Rb8
{[%clk 0:01:16.9]} 24. Rd2 {[%clk 0:01:15.2]} 24... Nb6 {[%clk 0:01:16.6]} 25.
Bxb6 {[%clk 0:01:11.1]} 25... Rxb6 {[%clk 0:01:12.7]} 26. Ne2 {[%clk 0:01:11.2]}
26... b4 {[%clk 0:00:56.3]} 27. Nd4 {[%clk 0:01:07.5]} 27... Qc7 {[%clk
0:00:55]} 28. axb4 {[%clk 0:01:02]} 28... Rxb4 {[%clk 0:00:55.9]} 29. c3 {[%clk
0:01:01.9]} 29... Rc4 {[%clk 0:00:53.1]} 30. f4 {[%clk 0:00:56.3]} 30... a5
{[%clk 0:00:52]} 31. b3 {[%clk 0:00:47.7]} 31... Rc5 {[%clk 0:00:23.5]} 32. Rd3
{[%clk 0:00:48.1]} 32... Kf8 {[%clk 0:00:20.2]} 33. Ra1 {[%clk 0:00:43.3]} 33...
Kg7 {[%clk 0:00:19.7]} 34. Kh1 {[%clk 0:00:40.4]} 34... Rh8 {[%clk 0:00:19.7]}
35. Rf1 {[%clk 0:00:33.4]} 35... Rc8 {[%clk 0:00:19]} 36. Rf3 {[%clk 0:00:33.6]}
36... Qb8 {[%clk 0:00:15.7]} 37. g4 {[%clk 0:00:33]} 37... hxg3 {[%clk
0:00:15.5]} 38. Rxg3 {[%clk 0:00:33.4]} 38... Rh8 {[%clk 0:00:15.8]} 39. f5
{[%clk 0:00:33.5]} 39... exf5 {[%clk 0:00:05.5]} 40. Nxf5+ {[%clk 0:00:33.6]}
40... Kf8 {[%clk 0:00:06]} 41. Nxe7 {[%clk 0:00:33.9]} 41... d4 {[%clk
0:00:06.5]} 42. cxd4 {[%clk 0:00:32.7]} 42... Qb7+ {[%clk 0:00:06.3]} 43. d5
{[%clk 0:00:32.2]} 43... Qxe7 {[%clk 0:00:06.1]} 44. Kg2 {[%clk 0:00:27.3]}
44... Rc2+ {[%clk 0:00:06.3]} 45. Kf3 {[%clk 0:00:25.3]} 45... Rh5 {[%clk
0:00:05.9]} 46. Qd4 {[%clk 0:00:20.2]} 46... Rf5+ {[%clk 0:00:06.8]} 47. Qf4
{[%clk 0:00:17.5]} 47... Rxf4+ {[%clk 0:00:06.8]} 48. Kxf4 {[%clk 0:00:18.4]}
48... Rf2+ {[%clk 0:00:06.9]} 49. Rgf3 {[%clk 0:00:18.9]} 49... Rxf3+ {[%clk
0:00:07.4]} 50. Rxf3 {[%clk 0:00:19.7]} 50... Qh4+ {[%clk 0:00:07.9]} 51. Ke3
{[%clk 0:00:19.4]} 51... Ke7 {[%clk 0:00:08.8]} 52. Rf4 {[%clk 0:00:19.5]} 52...
Qxh3+ {[%clk 0:00:09]} 53. Ke4 {[%clk 0:00:20.3]} 53... Qxb3 {[%clk 0:00:09.1]}
54. d6+ {[%clk 0:00:20.7]} 54... Kd7 {[%clk 0:00:09.4]} 55. Rf6 {[%clk
0:00:21.3]} 55... Qc4+ {[%clk 0:00:09.6]} 56. Ke3 {[%clk 0:00:21.7]} 56... Qd5
{[%clk 0:00:10.1]} 57. Kf4 {[%clk 0:00:22.6]} 57... Qd4+ {[%clk 0:00:09.7]} 58.
Kg5 {[%clk 0:00:23]} 58... Qxe5+ {[%clk 0:00:09.8]} 59. Kh6 {[%clk 0:00:23.6]}
59... Qxf6 {[%clk 0:00:10]} 60. Kh7 {[%clk 0:00:24.5]} 60... g5 {[%clk
0:00:10.2]} 61. Kg8 {[%clk 0:00:24.5]} 61... g4 {[%clk 0:00:10.7]} 0-1

[Event "Late-Titled-Tuesday-Blitz-April-23-2024"]
[Site "Chess.com"]
[Date "2024.04.23"]
[Round "5"]
[White "whiteglovethief"]
[Black "GoltsevDmitry2000"]
[Result "1-0"]
[WhiteElo "2588"]
[BlackElo "2752"]
[TimeControl "180+1"]
[EndTime "14:57:15 PDT"]
[Termination "whiteglovethief won by checkmate"]

1. d4 {[%clk 0:03:00.9]} 1... e6 {[%clk 0:02:59.3]} 2. e4 {[%clk 0:02:59.5]}
2... d5 {[%clk 0:02:59.7]} 3. Nd2 {[%clk 0:02:59.7]} 3... c5 {[%clk 0:02:59.6]}
4. Ngf3 {[%clk 0:02:53.2]} 4... Nf6 {[%clk 0:02:56.7]} 5. e5 {[%clk 0:02:42.1]}
5... Nfd7 {[%clk 0:02:53.2]} 6. Bd3 {[%clk 0:02:42.2]} 6... cxd4 {[%clk
0:02:52.4]} 7. O-O {[%clk 0:02:41.6]} 7... Nc6 {[%clk 0:02:52.4]} 8. Re1 {[%clk
0:02:41.3]} 8... Qc7 {[%clk 0:02:49.3]} 9. Qe2 {[%clk 0:02:41.4]} 9... a6 {[%clk
0:02:42.9]} 10. Nb3 {[%clk 0:02:41.1]} 10... Nb4 {[%clk 0:02:41.7]} 11. Nbxd4
{[%clk 0:02:36.7]} 11... Nxd3 {[%clk 0:02:42]} 12. cxd3 {[%clk 0:02:26.7]} 12...
h6 {[%clk 0:02:25.8]} 13. Bf4 {[%clk 0:02:24]} 13... Qb6 {[%clk 0:02:07.7]} 14.
Be3 {[%clk 0:02:16.7]} 14... Qd8 {[%clk 0:01:41.2]} 15. Rac1 {[%clk 0:02:06.8]}
15... Nc5 {[%clk 0:01:26.7]} 16. Nf5 {[%clk 0:01:37.5]} 16... Nxd3 {[%clk
0:01:03]} 17. Nxg7+ {[%clk 0:01:28.3]} 17... Bxg7 {[%clk 0:01:02.9]} 18. Qxd3
{[%clk 0:01:29.2]} 18... O-O {[%clk 0:00:47.8]} 19. Bc5 {[%clk 0:01:28.1]} 19...
Re8 {[%clk 0:00:47]} 20. Bd6 {[%clk 0:01:28]} 20... Bd7 {[%clk 0:00:44.9]} 21.
Rc7 {[%clk 0:01:25.7]} 21... Bc6 {[%clk 0:00:24]} 22. Nd4 {[%clk 0:01:24.9]}
22... Rc8 {[%clk 0:00:20.2]} 23. Rxc8 {[%clk 0:01:16]} 23... Qxc8 {[%clk
0:00:19.7]} 24. Rc1 {[%clk 0:01:01.4]} 24... Qd8 {[%clk 0:00:16.7]} 25. Nxc6
{[%clk 0:00:58]} 25... bxc6 {[%clk 0:00:17.6]} 26. Qxa6 {[%clk 0:00:53.7]} 26...
Qg5 {[%clk 0:00:17.8]} 27. Qxc6 {[%clk 0:00:52.5]} 27... Kh7 {[%clk 0:00:13]}
28. h4 {[%clk 0:00:36.1]} 28... Qd2 {[%clk 0:00:11.8]} 29. Qc2+ {[%clk
0:00:33.3]} 29... Qxc2 {[%clk 0:00:11.1]} 30. Rxc2 {[%clk 0:00:34.2]} 30... Ra8
{[%clk 0:00:10.7]} 31. b4 {[%clk 0:00:33.2]} 31... f6 {[%clk 0:00:10.7]} 32. f4
{[%clk 0:00:30.2]} 32... Ra4 {[%clk 0:00:08.2]} 33. b5 {[%clk 0:00:28.2]} 33...
Rxf4 {[%clk 0:00:05.4]} 34. b6 {[%clk 0:00:28.1]} 34... fxe5 {[%clk 0:00:02.7]}
35. b7 {[%clk 0:00:28.1]} 35... e4 {[%clk 0:00:03.2]} 36. Bxf4 {[%clk
0:00:25.3]} 36... d4 {[%clk 0:00:03]} 37. b8=Q {[%clk 0:00:24]} 37... d3 {[%clk
0:00:03.9]} 38. Rd2 {[%clk 0:00:21.2]} 38... Kg6 {[%clk 0:00:04.8]} 39. Qb5
{[%clk 0:00:18.8]} 39... h5 {[%clk 0:00:04.3]} 40. Qg5+ {[%clk 0:00:17.2]} 40...
Kf7 {[%clk 0:00:04.9]} 41. Be5 {[%clk 0:00:16.9]} 41... Bf8 {[%clk 0:00:04.6]}
42. Qxh5+ {[%clk 0:00:16.6]} 42... Ke7 {[%clk 0:00:03.5]} 43. Qg4 {[%clk
0:00:16.5]} 43... e3 {[%clk 0:00:03.4]} 44. Rxd3 {[%clk 0:00:15.8]} 44... e2
{[%clk 0:00:03.9]} 45. Kf2 {[%clk 0:00:16.1]} 45... e1=Q+ {[%clk 0:00:04.8]} 46.
Kxe1 {[%clk 0:00:16.3]} 46... Kf7 {[%clk 0:00:03.6]} 47. Rf3+ {[%clk 0:00:15.8]}
47... Ke7 {[%clk 0:00:03]} 48. Rxf8 {[%clk 0:00:16.7]} 48... Kd7 {[%clk
0:00:01.4]} 49. Qxe6+ {[%clk 0:00:16.8]} 49... Kxe6 {[%clk 0:00:01.3]} 50. Re8+
{[%clk 0:00:17.2]} 50... Kd5 {[%clk 0:00:02.2]} 51. h5 {[%clk 0:00:16.6]} 51...
Kc4 {[%clk 0:00:03.1]} 52. h6 {[%clk 0:00:17.1]} 52... Kd3 {[%clk 0:00:04]} 53.
h7 {[%clk 0:00:18]} 53... Kc2 {[%clk 0:00:04.8]} 54. h8=Q {[%clk 0:00:18.5]}
54... Kd3 {[%clk 0:00:05.2]} 55. Qh4 {[%clk 0:00:18.4]} 55... Kc2 {[%clk
0:00:05.4]} 56. Qd4 {[%clk 0:00:18]} 56... Kc1 {[%clk 0:00:05.3]} 57. Qc3+
{[%clk 0:00:17.9]} 57... Kb1 {[%clk 0:00:05.5]} 58. Rb8+ {[%clk 0:00:17.5]}
58... Kxa2 {[%clk 0:00:06]} 59. Qb3# {[%clk 0:00:17.3]} 1-0